Cogmind - Beta 12 @@@ ROGUE MODE // 2023.10.12 @ 19:37:31 Player: Figgis Result: Destroyed by Z-Imprinter with Zionite Laser-M Performance ------------- Evolutions (1) 500 Regions Visited (6) 1200 Robots Destroyed (45) 225 Value Destroyed (1071) 1071 Prototype IDs (4) 80 Alien Tech Used (0) 0 Bonus (790) 790 TOTAL SCORE: 3866 Bonus ------- Follower Combat Kills 248 Met Imprinter 300 Was Imprinted 300 Friendly Fire -58 Cogmind --------- Core Integrity 0/400 Matter 110/300 Energy 10/100 System Corruption 0% Temperature Cool (18) Movement Core (1550) Ox30 Location -7/Deep Caves Parts ------- > --- POWER (1) -------- (None) > --- PROPULSION (3) --- (None) > --- UTILITY (3) ------ Huge Storage Unit Makeshift Armor Plating > --- WEAPON (2) ------- RU-N14's Throwing Claymores > --- INVENTORY (25) --- Heavy Ion Engine Heavy Ion Engine Nuclear Core Light Nuclear Core Carbon-fiber Leg Large Matter Pod (150) Improved Sensor Array Improved Utility Shielding Improved Utility Shielding Makeshift System Shield Makeshift System Shield Hacking Drone Bay (1/1) Beamcaster Makeshift Shrapnel Gun Makeshift Shrapnel Gun RU-N14's Throwing Claymores (10) RU-N14's Throwing Claymores (10) GAL Module Peak State ------------ > --- POWER ------------ Makeshift Power Source > --- PROPULSION ------- Light Treads Light Treads Improved Treads > --- UTILITY ---------- Huge Storage Unit Makeshift Armor Plating Hacking Drone Bay > --- WEAPON ----------- Bore Cannon RU-N14's Throwing Claymores > --- INVENTORY -------- Heavy Ion Engine Heavy Ion Engine Nuclear Core Light Nuclear Core Light Treads Light Treads Light Treads Carbon-fiber Leg Compact Wheel Improved Heat Sink Large Matter Pod Improved Sensor Array Tactical Coordination Suite Improved Utility Shielding Improved Utility Shielding Makeshift System Shield Makeshift System Shield Beamcaster Makeshift Shrapnel Gun Makeshift Shrapnel Gun Battle Cannon Bore Cannon RU-N14's Throwing Claymores RU-N14's Throwing Claymores GAL Module [Rating: 42] Favorites ----------- Power Cooled Ion Engine Engine Cooled Ion Engine Propulsion Light Treads Treads Light Treads Wheel Compact Wheel Utility Huge Storage Unit Device Improved Heat Sink Storage Huge Storage Unit Protection Makeshift Armor Plating Weapon Beam Rifle Energy Gun Beam Rifle Ballistic Gun Makeshift Shrapnel Gun Ballistic Cannon Bore Cannon Special Weapon RU-N14's Throwing Claymores Piercing Weapon CR-A16's Pointy Stick Build | -11 -10 -10 -9 -9 -7 -7 ------- Run | Jun Mat Min Mat Min Zio Dee Slots Evolved 2 | . . . 2 . . . Power . | . . . . . . . Propulsion 1 | . . . 1 . . . Utility 1 | . . . 1 . . . Weapon . | . . . . . . . Parts Attached 48 | 6 6 2 14 . 9 11 Power 7 | 1 1 . 4 . 1 . Engine 7 | 1 1 . 4 . 1 . Core . | . . . . . . . Reactor . | . . . . . . . Propulsion 12 | 2 1 . 4 . 1 4 Treads 11 | 2 1 . 4 . 1 3 Leg . | . . . . . . . Wheel 1 | . . . . . . 1 Hover . | . . . . . . . Flight . | . . . . . . . Utility 12 | 1 2 . 3 . 3 3 Device 5 | . 1 . . . 2 2 Storage 3 | 1 1 . 1 . . . Processor . | . . . . . . . Hackware . | . . . . . . . Protection 4 | . . . 2 . 1 1 Artifact . | . . . . . . . Weapon 17 | 2 2 2 3 . 4 4 Energy Gun 8 | 2 2 2 2 . . . Energy Cannon . | . . . . . . . Ballistic Gun 2 | . . . . . 2 . Ballistic Cannon 3 | . . . . . . 3 Launcher . | . . . . . . . Special Weapon 3 | . . . 1 . 1 1 Impact Weapon . | . . . . . . . Slashing Weapon . | . . . . . . . Piercing Weapon 1 | . . . . . 1 . Special Melee Weapon . | . . . . . . . Unidentified Prototypes 4 | . . . 2 . 2 . Parts Lost 20 | . 1 2 4 . . 13 Power 3 | . 1 . 1 . . 1 Propulsion 8 | . . . 1 . . 7 Utility 3 | . . . 1 . . 2 Weapon 6 | . . 2 1 . . 3 Highest Loss Streak 13 | . 1 2 2 . . 13 To Critical Strikes . | . . . . . . . Average Slot Usage (%) 98 | . 97 100 97 100 99 97 Engine 11 | . 13 14 10 11 10 10 Treads 31 | . 28 28 31 33 33 31 Device 11 | . 11 14 11 11 10 11 Storage 11 | . 14 14 11 11 11 11 Protection 7 | . . . 9 11 11 10 Energy Gun 14 | . 28 28 18 22 2 . Ballistic Gun 4 | . . . . . 10 9 Special Weapon 2 | . . . 3 . 2 9 Piercing Weapon 2 | . . . . . 6 . Naked Turns . | . . . . . . . Heaviest Build 108 | 12 30 30 100 100 103 108 Greatest Support 63 | 40 40 40 60 60 63 63 Greatest Overweight (x) 30 | 1 . . 1 1 1 30 Average Overweight (x) . | . . . . 1 1 1 Largest Inventory Capacity 25 | 8 15 15 25 25 25 25 Average Capacity 21 | 6 13 15 23 25 25 25 Most Carried 25 | 5 7 13 24 24 25 25 Average Carried 17 | 2 4 10 17 23 23 24 Final Capacity 25 | 8 15 15 25 25 25 25 Final Carried 25 | 2 7 13 22 24 25 18 Class Distribution -------------------- 74% | Mutant 25% | Scavenger-Mutant Dominant Class ---------------- Mutant | -10/Materials Mutant | -10/Mines Scavenger-Mutant | -9/Materials Scavenger-Mutant | -9/Mines Mutant | -7/Zion Mutant | -7/Deep Caves Resources | -11 -10 -10 -9 -9 -7 -7 ----------- Run | Jun Mat Min Mat Min Zio Dee Matter Collected 887 | 223 115 169 170 100 80 30 Remotely . | . . . . . . . Salvage Created 1581 | . 366 274 572 187 . 182 Parts 100 | . 31 11 32 18 . 8 Haulers Intercepted 2 | . . . 2 . . . Recyclers Shooed 1 | . . . 1 . . . Parts Field Recycled . | . . . . . . . Retrieved Matter . | . . . . . . . Parts Self-Destructed . | . . . . . . . Prevented . | . . . . . . . Kills | -11 -10 -10 -9 -9 -7 -7 ------- Run | Jun Mat Min Mat Min Zio Dee Combat Hostiles Destroyed 35 | . 9 6 9 9 . 2 Guns 33 | . 9 6 9 9 . . Cannons 2 | . . . . . . 2 Classes Destroyed 10 | . 5 1 2 1 . 1 Worker 2 | . 2 . . . . . Builder 1 | . 1 . . . . . Hauler 2 | . . . 2 . . . Recycler 1 | . . . 1 . . . Watcher 4 | . 2 . 2 . . . Swarmer 15 | . 3 . 5 7 . . Grunt 13 | . 6 5 1 1 . . Brawler 1 | . . . . 1 . . Sentry 4 | . . 1 3 . . . Z-Light 2 | . . . . . . 2 Best Kill Streak 5 | . 5 3 4 4 . 1 Combat Bots Only 5 | . 5 3 4 4 . 1 Max Kills in Single Turn 2 | . 1 1 2 2 . 1 Gunslinging 1 | . . . 1 1 . . Exploded . | . . . . . . . Melee . | . . . . . . . Uniques/NPCs Destroyed . | . . . . . . . Combat | -11 -10 -10 -9 -9 -7 -7 -------- Run | Jun Mat Min Mat Min Zio Dee Damage Taken 3541 | . 314 365 372 227 . 2263 Core 538 | . 38 73 31 30 . 366 Absorbed by Shields . | . . . . . . . Regen/Repaired (Parts) 132 | . . . 132 . . . Core Remaining (%) 77 | 100 . 55 . . . . Volleys Fired 126 | . 36 16 41 13 . 20 Largest 2 | . 2 2 2 2 . 2 Hottest 114 | . 105 105 112 112 . 114 Shots Fired 221 | . 72 33 64 26 . 26 Gun 196 | . 72 33 61 26 . 4 Cannon 19 | . . . . . . 19 Launcher . | . . . . . . . Special 6 | . . . 3 . . 3 Kinetic 23 | . . . . . . 23 Thermal 164 | . 72 23 43 26 . . Explosive 3 | . . . . . . 3 Electromagnetic 31 | . . 10 21 . . . Robot Hit Streak 23 | . 10 18 13 23 . 5 Robot Miss Streak 7 | . 6 2 3 1 . 7 Penetration Max . | . . . . . . . Secondary Targets 4 | . . 2 1 1 . . Max Gunslinging Chain 1 | . . 1 1 1 . . Shots Hit Robots 139 | . 38 28 43 19 . 11 Core Hits 72 | . 21 12 19 10 . 10 Critical Kills 1 | . . . . . . 1 Critical Parts Destroyed . | . . . . . . . Critical Strikes 9 | . . . 6 1 . 2 Burn 6 | . . . 5 1 . . Destroy 1 | . . . . . . 1 Corrupt 1 | . . . 1 . . . Sever 1 | . . . . . . 1 Melee Attacks 1 | . . . . . 1 . Impact . | . . . . . . . Slashing . | . . . . . . . Piercing 1 | . . . . . 1 . Sneak Attacks . | . . . . . . . Combat Hostiles . | . . . . . . . Follow-up Attacks . | . . . . . . . Damage Inflicted 2355 | . 551 353 675 288 . 488 Guns 1922 | . 551 353 620 288 . 110 Cannons 107 | . . . . . . 107 Explosions 237 | . . . 44 . . 193 Melee . | . . . . . . . Ramming . | . . . . . . . Kinetic 217 | . . . . . . 217 Thermal 1538 | . 551 218 481 288 . . Explosive 193 | . . . . . . 193 Electromagnetic 329 | . . 135 194 . . . Impact . | . . . . . . . Slashing 78 | . . . . . . 78 Piercing . | . . . . . . . Highest Corruption 4 | . 3 4 . . . . Average Corruption 2 | . 1 3 . . . . Corruption Purged . | . . . . . . . Corruption Blocked . | . . . . . . . Effects 25 | . 5 20 . . . . Message Errors 5 | . 2 3 . . . . Matter Fused 10 | . 2 8 . . . . Heat Flow Errors 3 | . 1 2 . . . . Energy Discharges 2 | . . 2 . . . . Data Loss (minor) 2 | . . 2 . . . . Data Loss (major) 1 | . . 1 . . . . Misfires 1 | . . 1 . . . . Alerts 1 | . . 1 . . . . Overload Shots . | . . . . . . . Overflow Damage 37 | . . . 26 . . 11 Projectiles 11 | . . . . . . 11 Explosions 26 | . . . 26 . . . Melee . | . . . . . . . Knockbacks . | . . . . . . . Impact . | . . . . . . . Kinetic . | . . . . . . . Secondary . | . . . . . . . Self-Inflicted Damage 69 | . . . 69 . . . Shots 1 | . . . 1 . . . Rammed . | . . . . . . . Targets Rammed . | . . . . . . . Kicked . | . . . . . . . Crushed . | . . . . . . . Highest Temperature 408 | . 270 263 90 54 . 408 Average Temperature 73 | . 50 62 24 25 . 217 Received Heat Transfer 1017 | . 111 195 72 18 . 621 Effects 3 | . . 1 . . . 2 Shutdowns 1 | . . . . . . 1 Energy Bleed 1 | . . 1 . . . . Matter Decay 1 | . . . . . . 1 Siege Activations . | . . . . . . . Robots Corrupted . | . . . . . . . Combat Hostiles . | . . . . . . . Parts Fried . | . . . . . . . Impact Corruptions . | . . . . . . . Robots Melted . | . . . . . . . Combat Hostiles . | . . . . . . . Parts Melted 10 | . 1 1 7 1 . . Heat Transferred 4034 | . 1242 485 1530 777 . . Parts Sabotaged . | . . . . . . . Parts Stolen . | . . . . . . . Parts Stripped . | . . . . . . . Power Chain Reactions 1 | . . . 1 . . . Missiles Intercepted . | . . . . . . . Alert | -11 -10 -10 -9 -9 -7 -7 ------- Run | Jun Mat Min Mat Min Zio Dee Peak Influence 282 | . 180 118 206 282 . . Initial 64 | . . 7 . 64 . . Average 73 | . 57 42 68 200 . . Maximum Alert Level 1 | . . . 1 1 . . Low Security (%) 90 | 100 100 100 95 27 . . Level 1 9 | . . . 4 72 . . Level 2 . | . . . . . . . Level 3 . | . . . . . . . Level 4 . | . . . . . . . Level 5 . | . . . . . . . High Security . | . . . . . . . Max Security . | . . . . . . . Squads Dispatched 1 | . 1 . . . . . Investigation . | . . . . . . . Extermination . | . . . . . . . Reinforcement 1 | . 1 . . . . . Assault . | . . . . . . . Garrison . | . . . . . . . Intercept . | . . . . . . . Searches Triggered . | . . . . . . . Construction Impeded . | . . . . . . . Haulers Reinforced . | . . . . . . . Active Scanning Responses . | . . . . . . . Cargo Convoy Interrupts . | . . . . . . . Stealth | -11 -10 -10 -9 -9 -7 -7 --------- Run | Jun Mat Min Mat Min Zio Dee Distress Signals 1 | . . . 1 . . . Communications Jammed . | . . . . . . . Distress Signals . | . . . . . . . Times Spotted 63 | . 21 7 24 9 . 2 Peak Tracking Total 5 | . 5 3 5 4 . 2 Tactical Retreats 2 | . 2 . . . . . Traps | -11 -10 -10 -9 -9 -7 -7 ------- Run | Jun Mat Min Mat Min Zio Dee Traps Triggered 4 | . 3 1 . . . . Indirectly . | . . . . . . . Trap Hack Attempts . | . . . . . . . Triggered . | . . . . . . . Disarmed . | . . . . . . . Reprogrammed . | . . . . . . . Reused . | . . . . . . . Traps Extracted . | . . . . . . . Installed . | . . . . . . . Triggered . | . . . . . . . Machines | -11 -10 -10 -9 -9 -7 -7 ---------- Run | Jun Mat Min Mat Min Zio Dee Machines Disabled 3 | . . . 3 . . . Max in Single Turn . | . . . . . . . Machines Repaired . | . . . . . . . Machines Sabotaged . | . . . . . . . Overloaded Fab Kills . | . . . . . . . Hacking | -11 -10 -10 -9 -9 -7 -7 --------- Run | Jun Mat Min Mat Min Zio Dee Machines Accessed 23 | . 9 2 11 1 . . Terminals 16 | . 7 1 7 1 . . Fabricators . | . . . . . . . Repair Stations 2 | . 1 . 1 . . . Recycling Units 2 | . 1 . 1 . . . Scanalyzers 2 | . . . 2 . . . Garrison Access . | . . . . . . . Total Hacks 61 | . 21 8 27 5 . . Successful 36 | . 11 4 18 3 . . Failed 24 | . 9 4 9 2 . . Catastrophic 7 | . 3 . 3 1 . . Database Lockouts 1 | . 1 . . . . . Manual 17 | . 6 . 6 . 5 . Terminals 45 | . 17 7 16 5 . . Fabricators . | . . . . . . . Repair Stations 7 | . 2 . 5 . . . Recycling Units 4 | . 2 . 2 . . . Scanalyzers 4 | . . . 4 . . . Garrison Access . | . . . . . . . Terminal Hacks 25 | . 9 4 9 3 . . Record 14 | . 5 3 3 3 . . Robot Analysis 4 | . 2 . 2 . . . Open Door 1 | . . 1 . . . . Branch Access Points 2 | . 1 . 1 . . . Unreport Threat 2 | . 1 . 1 . . . Zone Layout 2 | . . . 2 . . . Fabricator Hacks . | . . . . . . . Repair Station Hacks 3 | . . . 3 . . . Scan Component 2 | . . . 2 . . . Repair 1 | . . . 1 . . . Recycling Unit Hacks 4 | . 2 . 2 . . . Process 1 | . 1 . . . . . Report Inventory 1 | . . . 1 . . . Retrieve Matter 1 | . 1 . . . . . Retrieve Components 1 | . . . 1 . . . Scanalyzer 4 | . . . 4 . . . Insert Component 2 | . . . 2 . . . Analyze 2 | . . . 2 . . . Garrison Access Hacks . | . . . . . . . Unauthorized Hacks . | . . . . . . . Terminals . | . . . . . . . Fabricators . | . . . . . . . Repair Stations . | . . . . . . . Recycling Units . | . . . . . . . Scanalyzers . | . . . . . . . Garrison Access . | . . . . . . . Data Cores Recovered 1 | . . . 1 . . . Used . | . . . . . . . Hacking Detections 17 | . 6 1 9 1 . . Full Trace Events . | . . . . . . . Feedback Events . | . . . . . . . Feedback Blocked . | . . . . . . . Robot Schematics Acquired 4 | . . . . . 4 . Robots Built . | . . . . . . . Authchips . | . . . . . . . Time . | . . . . . . . Total Robot Build Rating . | . . . . . . . Part Schematics Acquired 16 | . . . 2 . 14 . Parts Built . | . . . . . . . Authchips . | . . . . . . . Time . | . . . . . . . Total Part Build Rating . | . . . . . . . Parts Repaired 1 | . . . 1 . . . Time 26 | . . . 26 . . . Parts Recycled . | . . . . . . . Recycled Matter 157 | . 157 . . . . . Retrieved Matter 157 | . 157 . . . . . Retrieved Components 3 | . . . 3 . . . Parts Scanalyzed 2 | . . . 2 . . . Part Schematics Acquired 2 | . . . 2 . . . Parts Damaged . | . . . . . . . Bothacking | -11 -10 -10 -9 -9 -7 -7 ------------ Run | Jun Mat Min Mat Min Zio Dee Used RIF Installer . | . . . . . . . Robots Hacked . | . . . . . . . Non-combat . | . . . . . . . Combat . | . . . . . . . Robot Hacks Applied . | . . . . . . . Relay Couplers Released . | . . . . . . . Fabnet Peak Effective % . | . . . . . . . Robots Rewired . | . . . . . . . Allies Hacked . | . . . . . . . Hacks Repelled . | . . . . . . . Allies | -11 -10 -10 -9 -9 -7 -7 -------- Run | Jun Mat Min Mat Min Zio Dee Total Allies 8 | . . 1 . . 7 . Largest Group 7 | . . 1 1 . 7 7 Highest-Rated Group 237 | . . 31 31 . 237 237 Highest-Rated Ally 40 | . . 31 31 . 40 40 Total Orders 1 | . . . . . 1 . RETURN 1 | . . . . . 1 . Ally Attacks 42 | . . 3 35 . . 4 Total Damage 606 | . . 64 504 . . 38 Kills 14 | . . 1 12 . . 1 Allies Corrupted . | . . . . . . . Allies Melted . | . . . . . . . Intel | -11 -10 -10 -9 -9 -7 -7 ------- Run | Jun Mat Min Mat Min Zio Dee Robot Analysis Total 3 | . 2 . 1 . . . Derelict Logs Recovered 1 | . . 1 . . . . Drone Launches 1 | . . . . . 1 . Drone Recoveries 1 | . . . . . 1 . Exploration | -11 -10 -10 -9 -9 -7 -7 ------------- Run | Jun Mat Min Mat Min Zio Dee Turns Passed 8058 | 47 1100 1080 1826 482 2828 695 Spaces Moved 3511 | 34 583 589 727 184 1135 259 Core 20 | 19 . . . . . 1 Treads 3490 | 15 583 589 727 184 1135 257 Legs . | . . . . . . . Wheels 1 | . . . . . . 1 Hover . | . . . . . . . Flight . | . . . . . . . Fastest Speed 50 | 50 160 160 160 240 240 190 Average Speed 208 | 102 160 160 221 240 240 244 Slowest Speed 1550 | 160 160 160 240 240 240 1550 Overloaded Moves . | . . . . . . . Propulsion Burnouts . | . . . . . . . Robots Hopped . | . . . . . . . Cave-ins Triggered . | . . . . . . . Exploration Rate (%) 58 | 3 77 100 67 45 90 26 Regions Visited 6 Branch Regions 4 Pre-discovered Areas 1 | . . 1 . . . . Known Exits Taken 2 | . 1 . 1 . . . Unknown Exits Taken 4 | 1 . 1 . 1 1 . Scrap Searched 4 | . . 1 . . 3 . Spaces Dug . | . . . . . . . Terrain Destroyed 1 | . . . . . . 1 Melee . | . . . . . . . Projectile 1 | . . . . . . 1 AOE . | . . . . . . . Terrain Rammed . | . . . . . . . Walls Destroyed . | . . . . . . . Machines Disabled . | . . . . . . . Actions | -11 -10 -10 -9 -9 -7 -7 --------- Run | Jun Mat Min Mat Min Zio Dee Total 4026 | 45 677 695 876 199 1242 292 Wait 256 | . 43 81 59 1 70 2 Move 3505 | 33 582 588 726 183 1134 259 Hop . | . . . . . . . Pick Up 62 | 6 9 8 25 2 12 . Fast Attach 8 | 2 . . 2 . 4 . Attach 23 | 4 3 2 6 . 1 7 Detach . | . . . . . . . Swap 17 | . 3 . 6 . 4 4 Drop 28 | . 1 . 11 . 16 . Fire 126 | . 36 16 41 13 . 20 Melee 1 | . . . . . 1 . Ram . | . . . . . . . Kick . | . . . . . . . Crush . | . . . . . . . Escape Stasis . | . . . . . . . Rewire . | . . . . . . . Trap . | . . . . . . . Miscellaneous . | . . . . . . . Route ------- -11/Junkyard -10/Materials (discovered 4 exits: *Mat x2 / *Min x2) -10/Mines (discovered 2 exits: *Mat x2) -9/Materials (discovered 4 exits: [*Mat x2] / *Min x2) -9/Mines (discovered 2 exits: [*Mat] / *Zio) -7/Zion (discovered 2 exits: [*Dee] / [*Pro]) -7/Deep Caves History --------- Turn | Location | Event 7 | -11/Junkyard | Discovered new exit (range 15) 48 | -11/Junkyard | Entered Materials 318 | -10/Materials | Discovered new exit (range 15) 333 | -10/Materials | Build established: Mutant 561 | -10/Materials | Identified exit to Mines 561 | -10/Materials | Central database locked down 819 | -10/Materials | Discovered new exit (range 13) 1148 | -10/Materials | Entered Mines 1149 | -10/Mines | Met a Derelict bent on vengeance 1179 | -10/Mines | Discovered new exit (range 6) 1189 | -10/Mines | Received a Rocket Launcher from a helpful Derelict 1312 | -10/Mines | Learned location of Storage (-7) 1415 | -10/Mines | Discovered new exit (range 5) 1502 | -10/Mines | Met a Derelict who couldn't figure out how to use a Trap Extractor 1643 | -10/Mines | Escorted by a lone wolf Derelict 2228 | -10/Mines | Entered Materials 2228 | -9/Materials | Accompanied by 1 ally 2228 | -9/Materials | Evolved 2 slots: Propulsion x1, Utility x1 2343 | -9/Materials | Identified exit to Mines 2452 | -9/Materials | Repaired Lgt. Treads 2984 | -9/Materials | Discovered new exit (range 11) 3201 | -9/Materials | Build established: Scavenger-Mutant 3455 | -9/Materials | Discovered new exit (range 11) 4054 | -9/Materials | Entered Mines 4221 | -9/Mines | Discovered new exit (range 9) 4395 | -9/Mines | A Derelict revealed a hidden shortcut to a safe place 4536 | -9/Mines | Entered Zion 4716 | -7/Zion | Found CR-A16's Pointy Stick 4789 | -7/Zion | Discovered new exit (range 8) 5179 | -7/Zion | Build established: Mutant 5343 | -7/Zion | Given the Hacking Drone Bay 5405 | -7/Zion | Found Prototype Device 5406 | -7/Zion | Identified Hacking Drone Bay 5662 | -7/Zion | Received a hallucinogenic algorithm 5797 | -7/Zion | Imprinted 5799 | -7/Zion | Declared Zion's savior 6283 | -7/Zion | Gained Derelict followers 6634 | -7/Zion | Found GAL Module 6806 | -7/Zion | Found Prototype Special Weapon 6806 | -7/Zion | Identified RU-N14's Throwing Claymores 6811 | -7/Zion | Found RU-N14's Throwing Claymores 6815 | -7/Zion | Found RU-N14's Throwing Claymores 6974 | -7/Zion | Acquired unknown access codes intercepted by a Zionite 7307 | -7/Zion | Opened final containment barrier to the Deep Caves 7343 | -7/Zion | Discovered new exit (range 3) 7343 | -7/Zion | Saw the warning signs outside the Deep Caves entrance 7364 | -7/Zion | Entered Deep Caves 7364 | -7/Deep Caves | Accompanied by 7 allies 7977 | -7/Deep Caves | Attacked by Z-Imprinter 8034 | -7/Deep Caves | Core integrity fell below 50% 8047 | -7/Deep Caves | Core integrity fell below 20% 8059 | -7/Deep Caves | Destroyed by Z-Imprinter with Zionite Laser-M Last Messages --------------- 07977_ WS-8UB(g) destroyed. 07987_ AF-LAP(b) destroyed. 07996_ HV Slug penetrates Z-Imprinter. 08004_ Lgt. Treads destroyed. 08013_ Power failure, Mak. Power Source shutdown. 08014_ Bore Cannon destroyed. 08014_ Imp. Treads destroyed. 08017_ Overheating: Matter decay (-20). 08020_ Lgt. Treads destroyed. 08023_ Com. Wheel destroyed. 08023_ Bore Cannon destroyed. 08025_ Identified Battle Cannon. 08030_ Lgt. Treads destroyed. 08032_ SK-6KK(z) destroyed. 08036_ Battle Cannon destroyed. 08040_ Mak. Power Source destroyed. 08043_ Tactical Coordination Suite destroyed. 08051_ Z-Imprinter Adv. Phase Shifter severed. 08053_ Destroyed Prototype Hover Unit. 08053_ Imp. Heat Sink destroyed. Map ----- +----------------------------------------------------+ | ????????????????????????????? ##??? | | ????????????????????????????? #???? | | ???????????????????????????? ##??? | | ???????????????????????????? #??? | | ???????????????????????????? #??? | | ???????????????????????????? #??? | | ???????????????????????????? ##??? | | ?????????????????????????? ##??? | | ???????????????????????? #??? | | ????????????????????? #??? | | ?????????????????????? ##??? | | ?????????????????????" % ##???# | | ?????????????????????"" %% ##???# | | ????????????????????""" I ##??# | | ???????????????????"""" =%! #??# | | ??????????????????"""" /%* #??# | | ????????????????? """ ##??? | | ????????????????? / #???? | | ?????????????"""""""""%= ##??? | | ???????????""""""""" * #??? | | ??????????? ##?? | | ??????????? #?? | | ?????????? ##? | | ?????????? % #? | | ????????? *% ! #? | | ????????? @ #? | | ????????? ;;;## #? | | ????????? ##;;#####" #"## #? | | ????????? ??## #????##"###??## ##? | | ?????????? ###?????##???????#?????## ###?? | | ??????????#######?????????????????????????####???? | | ?????????????????????????????????????????????????? | | | | | | | | | | | | | | | | | | | | | | | | | | | | | | | | | | | | | +----------------------------------------------------+ Best States ------------- Heat Dissipation 42 Energy Generation 15 Energy Capacity 280 Matter Stores 300 Matter Capacity 300 Sight Range 16 Terrain Scan Density 10 Armor Coverage 150 Evasion (%) 50 Recoil Reduction 3 Item Schematics ----------------- Hvy. Ion Engine | -9/Materials | Scanalyzed Carbon-fiber Leg | -9/Materials | Scanalyzed Energy Filter | -7/Zion | Archive Adv. Heat Sink | -7/Zion | Archive Fusion Compressor | -7/Zion | Archive Mak. Shrapnel Gun | -7/Zion | Archive Lgt. Angular Momentum Engine | -7/Zion | Archive Mak. Flight Unit | -7/Zion | Archive Imp. Weapon Cycler | -7/Zion | Archive Mak. Sword | -7/Zion | Archive Imp. Proton Missile Launcher | -7/Zion | Archive Powered Hammer | -7/Zion | Archive Imp. Medium Treads | -7/Zion | Archive Fission Core | -7/Zion | Archive Lyr. Light Armor Plating | -7/Zion | Archive Imp. Focal Shield | -7/Zion | Archive Robot Schematics ------------------ S-27 Virus | -7/Zion | Archive G-47 Trooper | -7/Zion | Archive T-07 Excavator | -7/Zion | Archive H-88 Terminator | -7/Zion | Archive Fabricated ------------ Nothing Alien Tech Used ----------------- None Achievements -------------- Signs Are For Wimps Challenges ------------ None Game ------ Seed DecoderHackingChronowheel Manual? 0 Play Time 00:36:30 Cumulative 49.2 hours Start 2023.10.12 @ 18:54:48 End 2023.10.12 @ 19:37:31 Sessions 1 Manual Loads 0 Difficulty Rogue Special Mode None Game No. 90 Rogue 87 Adventurer 3 Explorer 0 Win Type - Total 0 Types 0/0/0/0/0/0/0/0/0 Lore% 27 Gallery% 45 Achievement% 33 Wizard Run 0 Options --------- ASCII 0 Keyboard 0 Movement Mouse Keybinds 0 Fullscreen 2 Font 18/SmallcapsGlow Map View 76x50 Tactical HUD 1 Map Filters NONE Filters NONE Steam 1 RUN: 8b59e884-c526-4b97-b72a-b2c14685136e